[Event "*** Titled Tuesday Blitz"]
[Site "Chess.com"]
[Date "2021.04.27"]
[Round "6"]
[White "SargissyanSargis"]
[Black "LamaChampetre"]
[Result "1-0"]
[WhiteElo "2361"]
[BlackElo "2208"]
[TimeControl "180+1"]
[EndTime "11:02:14 PDT"]
[Termination "SargissyanSargis won by resignation"]

1. e4 {[%clk 0:03:00.9]} 1... c5 {[%clk 0:02:59.1]} 2. Nc3 {[%clk 0:02:59.1]}
2... Nc6 {[%clk 0:02:55.8]} 3. Bb5 {[%clk 0:02:58.4]} 3... Nd4 {[%clk
0:02:55.4]} 4. Bc4 {[%clk 0:02:57.6]} 4... g6 {[%clk 0:02:55.5]} 5. Nge2 {[%clk
0:02:53.8]} 5... Bg7 {[%clk 0:02:55.5]} 6. Nxd4 {[%clk 0:02:54.1]} 6... cxd4
{[%clk 0:02:55.3]} 7. Ne2 {[%clk 0:02:53.5]} 7... Nf6 {[%clk 0:02:44.5]} 8. d3
{[%clk 0:02:53.4]} 8... d5 {[%clk 0:02:41.8]} 9. exd5 {[%clk 0:02:52.5]} 9...
Nxd5 {[%clk 0:02:41.8]} 10. O-O {[%clk 0:02:51.2]} 10... O-O {[%clk 0:02:41.6]}
11. Nf4 {[%clk 0:02:31.6]} 11... Nxf4 {[%clk 0:02:24.9]} 12. Bxf4 {[%clk
0:02:32.5]} 12... b6 {[%clk 0:02:21.6]} 13. Qf3 {[%clk 0:02:28.9]} 13... Bd7
{[%clk 0:02:17.4]} 14. Bd5 {[%clk 0:02:24.4]} 14... Rb8 {[%clk 0:02:14.9]} 15.
Bxb8 {[%clk 0:02:23.8]} 15... Qxb8 {[%clk 0:02:12.7]} 16. Rfe1 {[%clk
0:02:23.1]} 16... Qd6 {[%clk 0:02:05.9]} 17. h3 {[%clk 0:02:08.6]} 17... Rc8
{[%clk 0:02:00.1]} 18. Qxf7+ {[%clk 0:02:08.5]} 18... Kh8 {[%clk 0:01:53]} 19.
Rxe7 {[%clk 0:02:05.2]} 1-0

[Event "*** Titled Tuesday Blitz"]
[Site "Chess.com"]
[Date "2021.04.27"]
[Round "6"]
[White "UKR_Master"]
[Black "AniJak"]
[Result "1-0"]
[WhiteElo "2472"]
[BlackElo "2287"]
[TimeControl "180+1"]
[EndTime "11:02:29 PDT"]
[Termination "UKR_Master won by checkmate"]

1. e4 {[%clk 0:03:00.6]} 1... c5 {[%clk 0:02:58.3]} 2. Nf3 {[%clk 0:03:00.9]}
2... e6 {[%clk 0:02:58.4]} 3. d4 {[%clk 0:03:00.6]} 3... cxd4 {[%clk 0:02:59.3]}
4. Nxd4 {[%clk 0:03:00.7]} 4... a6 {[%clk 0:03:00]} 5. c4 {[%clk 0:03:00.4]}
5... Qc7 {[%clk 0:02:59.3]} 6. Nc3 {[%clk 0:02:59]} 6... Nf6 {[%clk 0:02:57.8]}
7. a3 {[%clk 0:02:58.7]} 7... Nc6 {[%clk 0:02:57.4]} 8. Nc2 {[%clk 0:02:55.7]}
8... Be7 {[%clk 0:02:51.4]} 9. g3 {[%clk 0:02:55.7]} 9... O-O {[%clk 0:02:50.5]}
10. Bg2 {[%clk 0:02:56]} 10... b6 {[%clk 0:02:49.6]} 11. Bf4 {[%clk 0:02:54]}
11... d6 {[%clk 0:02:47.8]} 12. Rc1 {[%clk 0:02:54.2]} 12... Bb7 {[%clk
0:02:44.4]} 13. Ne3 {[%clk 0:02:52.9]} 13... Rfd8 {[%clk 0:02:43.7]} 14. Ncd5
{[%clk 0:02:51.7]} 14... exd5 {[%clk 0:02:40.6]} 15. cxd5 {[%clk 0:02:52.6]}
15... Qd7 {[%clk 0:02:36.6]} 16. dxc6 {[%clk 0:02:51.6]} 16... Bxc6 {[%clk
0:02:37.1]} 17. O-O {[%clk 0:02:46.7]} 17... Bxe4 {[%clk 0:02:35.5]} 18. Bxe4
{[%clk 0:02:42]} 18... Nxe4 {[%clk 0:02:35.4]} 19. Nd5 {[%clk 0:02:42.7]} 19...
Rab8 {[%clk 0:02:24.5]} 20. Rc7 {[%clk 0:02:41.8]} 20... Qh3 {[%clk 0:02:01.2]}
21. Rxe7 {[%clk 0:02:33.1]} 21... Nc5 {[%clk 0:01:50.3]} 22. Qf3 {[%clk
0:02:28.8]} 22... Ne6 {[%clk 0:01:45.5]} 23. Bxd6 {[%clk 0:02:22.8]} 23... Rxd6
{[%clk 0:01:42.3]} 24. Qxf7+ {[%clk 0:02:20.6]} 24... Kh8 {[%clk 0:01:42.1]} 25.
Re8+ {[%clk 0:02:21.3]} 25... Rxe8 {[%clk 0:01:38.7]} 26. Qxe8+ {[%clk
0:02:22.2]} 26... Nf8 {[%clk 0:01:38.7]} 27. Qxf8# {[%clk 0:02:23.1]} 1-0

[Event "*** Titled Tuesday Blitz"]
[Site "Chess.com"]
[Date "2021.04.27"]
[Round "6"]
[White "tylityli"]
[Black "mr65"]
[Result "0-1"]
[WhiteElo "2323"]
[BlackElo "2195"]
[TimeControl "180+1"]
[EndTime "11:02:34 PDT"]
[Termination "mr65 won by resignation"]

1. d4 {[%clk 0:03:00.9]} 1... Nf6 {[%clk 0:02:59.4]} 2. c4 {[%clk 0:02:59.8]}
2... g6 {[%clk 0:02:59.3]} 3. Nc3 {[%clk 0:02:59.1]} 3... Bg7 {[%clk 0:02:59.4]}
4. e4 {[%clk 0:02:58.5]} 4... d6 {[%clk 0:02:59.7]} 5. Nge2 {[%clk 0:02:59.4]}
5... O-O {[%clk 0:02:59.3]} 6. Ng3 {[%clk 0:03:00.2]} 6... c5 {[%clk 0:02:59]}
7. d5 {[%clk 0:02:59.5]} 7... e6 {[%clk 0:02:59.1]} 8. Be2 {[%clk 0:02:58.3]}
8... exd5 {[%clk 0:02:59.1]} 9. cxd5 {[%clk 0:02:59.2]} 9... h5 {[%clk 0:02:59]}
10. Bg5 {[%clk 0:02:57.7]} 10... Re8 {[%clk 0:02:58]} 11. O-O {[%clk 0:02:54.1]}
11... a6 {[%clk 0:02:56.7]} 12. a4 {[%clk 0:02:52.4]} 12... Nbd7 {[%clk
0:02:56.4]} 13. Re1 {[%clk 0:02:38]} 13... Qe7 {[%clk 0:02:56.1]} 14. f3 {[%clk
0:02:37.2]} 14... Qf8 {[%clk 0:02:55.5]} 15. Qd2 {[%clk 0:02:33.8]} 15... Nh7
{[%clk 0:02:52.4]} 16. Bh6 {[%clk 0:02:33.1]} 16... Bxh6 {[%clk 0:02:49.5]} 17.
Qc2 {[%clk 0:02:30.3]} 17... h4 {[%clk 0:02:45.8]} 18. Nf1 {[%clk 0:02:29.4]}
18... Ne5 {[%clk 0:02:38.4]} 19. a5 {[%clk 0:02:23.4]} 19... h3 {[%clk
0:02:33.2]} 20. g4 {[%clk 0:02:19.5]} 20... Bf4 {[%clk 0:02:27.6]} 21. Ng3
{[%clk 0:02:16.8]} 21... Qe7 {[%clk 0:02:16.5]} 22. Bf1 {[%clk 0:02:07.7]} 22...
Nxf3+ {[%clk 0:02:07.2]} 0-1

[Event "*** Titled Tuesday Blitz"]
[Site "Chess.com"]
[Date "2021.04.27"]
[Round "6"]
[White "tusplingher"]
[Black "Yana_pro"]
[Result "1-0"]
[WhiteElo "2271"]
[BlackElo "1986"]
[TimeControl "180+1"]
[EndTime "11:02:47 PDT"]
[Termination "tusplingher won by resignation"]

1. e4 {[%clk 0:03:00.9]} 1... e5 {[%clk 0:02:56.1]} 2. Bc4 {[%clk 0:02:59.8]}
2... Nf6 {[%clk 0:02:55.3]} 3. d4 {[%clk 0:02:58.5]} 3... exd4 {[%clk
0:02:51.8]} 4. Nf3 {[%clk 0:02:57.4]} 4... Nxe4 {[%clk 0:02:44.4]} 5. Qxd4
{[%clk 0:02:56.7]} 5... Nd6 {[%clk 0:02:34.3]} 6. O-O {[%clk 0:02:55.1]} 6...
Nxc4 {[%clk 0:02:32.6]} 7. Re1+ {[%clk 0:02:54.5]} 7... Be7 {[%clk 0:02:31.7]}
8. Qxg7 {[%clk 0:02:53.1]} 8... Rf8 {[%clk 0:02:25.9]} 9. Bh6 {[%clk 0:02:52.8]}
9... d5 {[%clk 0:01:37.3]} 10. Qxf8+ {[%clk 0:02:50]} 10... Kd7 {[%clk
0:01:38.2]} 11. Qxf7 {[%clk 0:02:49.1]} 11... Nc6 {[%clk 0:01:31.7]} 12. Qxd5+
{[%clk 0:02:44]} 12... Nd6 {[%clk 0:01:28.4]} 13. Qe6+ {[%clk 0:02:39.2]} 13...
Ke8 {[%clk 0:01:26.6]} 14. Qg8+ {[%clk 0:02:39.5]} 14... Kd7 {[%clk 0:01:24.9]}
15. Qxd8+ {[%clk 0:02:39.2]} 15... Kxd8 {[%clk 0:01:17.1]} 16. Nc3 {[%clk
0:02:37.6]} 16... Bf5 {[%clk 0:01:17.2]} 17. Rad1 {[%clk 0:02:33.5]} 17... Kd7
{[%clk 0:01:15.9]} 18. Nd5 {[%clk 0:02:27.1]} 18... Be6 {[%clk 0:01:05.5]} 19.
Rxe6 {[%clk 0:02:23.6]} 19... Kxe6 {[%clk 0:01:05.2]} 20. Nxc7+ {[%clk
0:02:23.3]} 1-0

[Event "*** Titled Tuesday Blitz"]
[Site "Chess.com"]
[Date "2021.04.27"]
[Round "6"]
[White "moro182"]
[Black "Grieve72"]
[Result "0-1"]
[WhiteElo "2697"]
[BlackElo "2520"]
[TimeControl "180+1"]
[EndTime "11:03:16 PDT"]
[Termination "Grieve72 won by resignation"]

1. d4 {[%clk 0:02:34.8]} 1... f5 {[%clk 0:02:57.8]} 2. c4 {[%clk 0:02:34]} 2...
Nf6 {[%clk 0:02:57.7]} 3. g3 {[%clk 0:02:34.6]} 3... g6 {[%clk 0:02:57.8]} 4.
Bg2 {[%clk 0:02:35.1]} 4... Bg7 {[%clk 0:02:58.4]} 5. b3 {[%clk 0:02:35.7]} 5...
d6 {[%clk 0:02:56]} 6. Bb2 {[%clk 0:02:36.1]} 6... O-O {[%clk 0:02:54.9]} 7. Nd2
{[%clk 0:02:36.4]} 7... Nc6 {[%clk 0:02:48.8]} 8. d5 {[%clk 0:02:32.2]} 8... Ne5
{[%clk 0:02:48.7]} 9. Ngf3 {[%clk 0:02:32]} 9... Nfg4 {[%clk 0:02:34.3]} 10. Qc2
{[%clk 0:02:25.4]} 10... c6 {[%clk 0:02:04.9]} 11. Nxe5 {[%clk 0:02:23.4]} 11...
Nxe5 {[%clk 0:01:57.6]} 12. dxc6 {[%clk 0:02:19.8]} 12... Nxc6 {[%clk
0:01:51.5]} 13. Bxg7 {[%clk 0:02:16.5]} 13... Kxg7 {[%clk 0:01:52.4]} 14. e3
{[%clk 0:02:16]} 14... e5 {[%clk 0:01:44]} 15. h4 {[%clk 0:02:13.2]} 15... e4
{[%clk 0:01:41.2]} 16. Bf1 {[%clk 0:02:13.1]} 16... Ne5 {[%clk 0:01:38]} 17. Be2
{[%clk 0:02:11.9]} 17... Be6 {[%clk 0:01:34.9]} 18. h5 {[%clk 0:01:59.3]} 18...
Rc8 {[%clk 0:01:31.6]} 19. Qb2 {[%clk 0:01:52.1]} 19... Qf6 {[%clk 0:01:30.8]}
20. hxg6 {[%clk 0:01:49.1]} 20... Nd3+ {[%clk 0:01:27.3]} 0-1

[Event "*** Titled Tuesday Blitz"]
[Site "Chess.com"]
[Date "2021.04.27"]
[Round "6"]
[White "TheKingOfTheForest"]
[Black "pavelalexandru07"]
[Result "1-0"]
[WhiteElo "2243"]
[BlackElo "2328"]
[TimeControl "180+1"]
[EndTime "11:04:05 PDT"]
[Termination "TheKingOfTheForest won by resignation"]

1. d4 {[%clk 0:02:56.2]} 1... Nf6 {[%clk 0:02:59.7]} 2. c4 {[%clk 0:02:56.2]}
2... c5 {[%clk 0:02:54.3]} 3. d5 {[%clk 0:02:56.2]} 3... e6 {[%clk 0:02:54.6]}
4. Nc3 {[%clk 0:02:55.9]} 4... exd5 {[%clk 0:02:54.9]} 5. cxd5 {[%clk
0:02:56.2]} 5... d6 {[%clk 0:02:55]} 6. Bf4 {[%clk 0:02:55.9]} 6... g6 {[%clk
0:02:54]} 7. h3 {[%clk 0:02:53.6]} 7... Bg7 {[%clk 0:02:53.2]} 8. Nf3 {[%clk
0:02:46.6]} 8... O-O {[%clk 0:02:52.7]} 9. e3 {[%clk 0:02:44.7]} 9... Ne8 {[%clk
0:02:46.1]} 10. Nd2 {[%clk 0:02:36]} 10... Nd7 {[%clk 0:02:43.4]} 11. Nc4 {[%clk
0:02:31.1]} 11... Ne5 {[%clk 0:02:43.3]} 12. Bxe5 {[%clk 0:02:29.9]} 12... Bxe5
{[%clk 0:02:43.3]} 13. Nxe5 {[%clk 0:02:27]} 13... dxe5 {[%clk 0:02:43.3]} 14.
Be2 {[%clk 0:02:25.9]} 14... Nd6 {[%clk 0:02:42.6]} 15. O-O {[%clk 0:02:19]}
15... f5 {[%clk 0:02:41.8]} 16. Nb5 {[%clk 0:02:10.1]} 16... a6 {[%clk
0:02:36.2]} 17. Nxd6 {[%clk 0:02:05.7]} 17... Qxd6 {[%clk 0:02:37.1]} 18. Bc4
{[%clk 0:02:05.6]} 18... b5 {[%clk 0:02:35.6]} 19. Be2 {[%clk 0:02:00]} 19...
Bb7 {[%clk 0:02:27.3]} 20. Rc1 {[%clk 0:01:52.4]} 20... Rac8 {[%clk 0:02:25.6]}
21. a3 {[%clk 0:01:40.9]} 21... Kg7 {[%clk 0:01:59.9]} 22. Qd2 {[%clk
0:01:40.5]} 22... Qxd5 {[%clk 0:01:57]} 23. Qxd5 {[%clk 0:01:38.5]} 23... Bxd5
{[%clk 0:01:57.9]} 24. Rfd1 {[%clk 0:01:38.4]} 24... Rfd8 {[%clk 0:01:57.6]} 25.
f4 {[%clk 0:01:30.7]} 25... e4 {[%clk 0:01:56.5]} 26. g4 {[%clk 0:01:29]} 26...
Kf6 {[%clk 0:01:55.5]} 27. gxf5 {[%clk 0:01:28.5]} 27... gxf5 {[%clk 0:01:55.3]}
28. Kf2 {[%clk 0:01:28.4]} 28... Ke6 {[%clk 0:01:53.9]} 29. Rg1 {[%clk
0:01:27.8]} 29... Kf6 {[%clk 0:01:52.7]} 30. Rg5 {[%clk 0:01:21.8]} 30... c4
{[%clk 0:01:40.2]} 31. Rh5 {[%clk 0:01:20.3]} 31... Rc7 {[%clk 0:01:35.6]} 32.
Rh6+ {[%clk 0:01:18.6]} 32... Kg7 {[%clk 0:01:31.7]} 33. Rxa6 {[%clk 0:01:16.6]}
33... Be6 {[%clk 0:01:27]} 1-0

[Event "*** Titled Tuesday Blitz"]
[Site "Chess.com"]
[Date "2021.04.27"]
[Round "6"]
[White "DFeco"]
[Black "WiktoriaPOL"]
[Result "1-0"]
[WhiteElo "2277"]
[BlackElo "2037"]
[TimeControl "180+1"]
[EndTime "11:04:12 PDT"]
[Termination "DFeco won by checkmate"]

1. c4 {[%clk 0:03:00.9]} 1... Nf6 {[%clk 0:02:58.5]} 2. g3 {[%clk 0:03:00.7]}
2... g6 {[%clk 0:02:58.1]} 3. Bg2 {[%clk 0:03:00.9]} 3... Bg7 {[%clk 0:02:57.8]}
4. Nc3 {[%clk 0:03:01.3]} 4... O-O {[%clk 0:02:57.6]} 5. e4 {[%clk 0:03:01.7]}
5... d6 {[%clk 0:02:57.6]} 6. Nge2 {[%clk 0:03:02.1]} 6... e5 {[%clk 0:02:57.9]}
7. O-O {[%clk 0:03:02.1]} 7... c6 {[%clk 0:02:56.6]} 8. d3 {[%clk 0:03:01.5]}
8... Be6 {[%clk 0:02:52.9]} 9. h3 {[%clk 0:03:00.7]} 9... d5 {[%clk 0:02:48.7]}
10. cxd5 {[%clk 0:02:59.1]} 10... cxd5 {[%clk 0:02:49.6]} 11. Bg5 {[%clk
0:02:51.7]} 11... d4 {[%clk 0:02:46.8]} 12. Nb5 {[%clk 0:02:31.8]} 12... a6
{[%clk 0:02:42.5]} 13. Na3 {[%clk 0:02:28.6]} 13... h6 {[%clk 0:02:37.9]} 14.
Bd2 {[%clk 0:02:20.4]} 14... Nc6 {[%clk 0:02:33.9]} 15. f4 {[%clk 0:02:17.4]}
15... exf4 {[%clk 0:02:24.3]} 16. gxf4 {[%clk 0:02:11.1]} 16... Nd7 {[%clk
0:02:17.7]} 17. f5 {[%clk 0:02:08.2]} 17... gxf5 {[%clk 0:02:02.9]} 18. exf5
{[%clk 0:02:07.9]} 18... Bd5 {[%clk 0:01:08.2]} 19. Bxd5 {[%clk 0:02:02]} 19...
Nde5 {[%clk 0:01:07.5]} 20. Bg2 {[%clk 0:01:49.1]} 20... Nxd3 {[%clk 0:01:05.7]}
21. Ng3 {[%clk 0:01:37.2]} 21... Nxb2 {[%clk 0:01:00.6]} 22. Qf3 {[%clk
0:01:27.6]} 22... d3 {[%clk 0:00:58.1]} 23. f6 {[%clk 0:01:26.5]} 23... Bh8
{[%clk 0:00:50.2]} 24. Qg4+ {[%clk 0:01:23]} 24... Kh7 {[%clk 0:00:49.3]} 25.
Be4# {[%clk 0:01:23.5]} 1-0

[Event "*** Titled Tuesday Blitz"]
[Site "Chess.com"]
[Date "2021.04.27"]
[Round "6"]
[White "Nuvas"]
[Black "elohunter1999"]
[Result "1-0"]
[WhiteElo "2638"]
[BlackElo "2487"]
[TimeControl "180+1"]
[EndTime "11:04:18 PDT"]
[Termination "Nuvas won by resignation"]

1. d4 {[%clk 0:03:00.9]} 1... Nf6 {[%clk 0:02:58.9]} 2. c4 {[%clk 0:03:01.2]}
2... e5 {[%clk 0:02:53.2]} 3. dxe5 {[%clk 0:03:01]} 3... Ng4 {[%clk 0:02:53.4]}
4. Bf4 {[%clk 0:02:58.8]} 4... Nc6 {[%clk 0:02:53.2]} 5. Nf3 {[%clk 0:02:58.1]}
5... Bb4+ {[%clk 0:02:53]} 6. Nc3 {[%clk 0:02:58.3]} 6... Qe7 {[%clk 0:02:51.8]}
7. Qd5 {[%clk 0:02:58.2]} 7... f6 {[%clk 0:02:30.7]} 8. exf6 {[%clk 0:02:57.6]}
8... Nxf6 {[%clk 0:02:31.6]} 9. Qd3 {[%clk 0:02:57.3]} 9... O-O {[%clk
0:02:23.7]} 10. g3 {[%clk 0:02:57.3]} 10... d6 {[%clk 0:02:14.9]} 11. Bg2 {[%clk
0:02:56.5]} 11... Nh5 {[%clk 0:02:13.3]} 12. Qd5+ {[%clk 0:02:50.3]} 12... Qf7
{[%clk 0:02:07.8]} 13. Ng5 {[%clk 0:02:45.3]} 13... Qxd5 {[%clk 0:02:05.9]} 14.
Bxd5+ {[%clk 0:02:46.2]} 14... Kh8 {[%clk 0:02:05.9]} 15. Nf7+ {[%clk
0:02:44.3]} 15... Rxf7 {[%clk 0:02:06]} 16. Bxf7 {[%clk 0:02:45.2]} 16... Nxf4
{[%clk 0:02:06.9]} 17. gxf4 {[%clk 0:02:45.4]} 17... Bf5 {[%clk 0:02:06.1]} 18.
O-O-O {[%clk 0:02:39.7]} 18... a6 {[%clk 0:01:59.4]} 19. Bd5 {[%clk 0:02:36.3]}
19... Re8 {[%clk 0:01:48.6]} 20. e3 {[%clk 0:02:35]} 20... Na5 {[%clk
0:01:47.8]} 21. c5 {[%clk 0:02:08.2]} 21... Bxc5 {[%clk 0:01:31.6]} 22. a3
{[%clk 0:02:07.6]} 22... c6 {[%clk 0:01:26.5]} 23. Ba2 {[%clk 0:02:07.5]} 23...
d5 {[%clk 0:01:08.6]} 24. b4 {[%clk 0:02:07.1]} 24... Bd6 {[%clk 0:01:08.8]} 25.
bxa5 {[%clk 0:01:52.1]} 25... Bxa3+ {[%clk 0:01:08.7]} 26. Kd2 {[%clk
0:01:52.6]} 26... Bb4 {[%clk 0:01:08.8]} 27. Rb1 {[%clk 0:01:51.6]} 27... c5
{[%clk 0:01:04.5]} 28. Rxb4 {[%clk 0:01:49.9]} 28... cxb4 {[%clk 0:01:04.6]} 29.
Nxd5 {[%clk 0:01:50.2]} 29... Rd8 {[%clk 0:01:03.5]} 30. f3 {[%clk 0:01:43.6]}
30... Bh3 {[%clk 0:00:59]} 31. Rc1 {[%clk 0:01:41.3]} 31... Bg2 {[%clk
0:00:58.3]} 32. Ke2 {[%clk 0:01:41.4]} 32... Bh3 {[%clk 0:00:57.6]} 33. Nxb4
{[%clk 0:01:39]} 33... h6 {[%clk 0:00:56.5]} 34. Rc7 {[%clk 0:01:38.7]} 1-0

[Event "*** Titled Tuesday Blitz"]
[Site "Chess.com"]
[Date "2021.04.27"]
[Round "6"]
[White "aaaao"]
[Black "Sjakkerntobi"]
[Result "0-1"]
[WhiteElo "2651"]
[BlackElo "2394"]
[TimeControl "180+1"]
[EndTime "11:04:19 PDT"]
[Termination "Sjakkerntobi won by resignation"]

1. e4 {[%clk 0:03:00.9]} 1... e6 {[%clk 0:02:59.2]} 2. Nf3 {[%clk 0:03:01]} 2...
d5 {[%clk 0:03:00.1]} 3. e5 {[%clk 0:03:01.2]} 3... c5 {[%clk 0:03:00.1]} 4. g3
{[%clk 0:03:02]} 4... Nc6 {[%clk 0:02:56]} 5. Bg2 {[%clk 0:03:01.9]} 5... Qc7
{[%clk 0:02:56.2]} 6. Qe2 {[%clk 0:03:02.1]} 6... Nh6 {[%clk 0:02:48.7]} 7. O-O
{[%clk 0:03:00.9]} 7... Nf5 {[%clk 0:02:49.3]} 8. c3 {[%clk 0:03:00.7]} 8... Be7
{[%clk 0:02:48.3]} 9. d3 {[%clk 0:02:59.2]} 9... O-O {[%clk 0:02:46.8]} 10. Bf4
{[%clk 0:02:57.4]} 10... b5 {[%clk 0:02:46]} 11. h4 {[%clk 0:02:57.1]} 11... Bb7
{[%clk 0:02:43.3]} 12. Nbd2 {[%clk 0:02:57]} 12... Rfc8 {[%clk 0:02:41.6]} 13.
h5 {[%clk 0:02:55.2]} 13... h6 {[%clk 0:02:41.5]} 14. g4 {[%clk 0:02:44.9]}
14... Nh4 {[%clk 0:02:41]} 15. Nxh4 {[%clk 0:02:45.2]} 15... Bxh4 {[%clk
0:02:41.9]} 16. Nf3 {[%clk 0:02:45.8]} 16... Be7 {[%clk 0:02:41.2]} 17. Rae1
{[%clk 0:02:39.6]} 17... Qd8 {[%clk 0:02:39.8]} 18. Qd2 {[%clk 0:02:39.1]} 18...
Bf8 {[%clk 0:02:38.1]} 19. g5 {[%clk 0:02:39.2]} 19... hxg5 {[%clk 0:02:37.6]}
20. Bxg5 {[%clk 0:02:39.4]} 20... Be7 {[%clk 0:02:37.8]} 21. Qf4 {[%clk
0:02:38]} 21... b4 {[%clk 0:02:25.2]} 22. h6 {[%clk 0:02:37.1]} 22... g6 {[%clk
0:02:21.2]} 23. Bh3 {[%clk 0:02:24.5]} 23... Ba6 {[%clk 0:02:14.8]} 24. h7+
{[%clk 0:02:19.2]} 24... Kg7 {[%clk 0:02:11.7]} 25. Bh6+ {[%clk 0:01:17]} 25...
Kxh7 {[%clk 0:02:06.3]} 26. Qxf7+ {[%clk 0:01:17]} 26... Kxh6 {[%clk 0:02:06.8]}
27. Bf5 {[%clk 0:01:17.5]} 27... gxf5 {[%clk 0:01:51.1]} 28. Qxe6+ {[%clk
0:01:16.4]} 28... Kg7 {[%clk 0:01:48.8]} 29. Kg2 {[%clk 0:01:05.5]} 29... Qg8
{[%clk 0:01:43.4]} 30. Qxf5 {[%clk 0:01:04.5]} 30... Rf8 {[%clk 0:01:41]} 31.
Qd7 {[%clk 0:00:58.8]} 31... Kh8+ {[%clk 0:01:26.2]} 0-1

[Event "*** Titled Tuesday Blitz"]
[Site "Chess.com"]
[Date "2021.04.27"]
[Round "6"]
[White "karwowskikacper"]
[Black "Chessbard1972"]
[Result "1-0"]
[WhiteElo "2414"]
[BlackElo "2252"]
[TimeControl "180+1"]
[EndTime "11:04:23 PDT"]
[Termination "karwowskikacper won by resignation"]

1. e4 {[%clk 0:03:00.9]} 1... c5 {[%clk 0:02:58.4]} 2. d4 {[%clk 0:02:53.5]}
2... cxd4 {[%clk 0:02:53.6]} 3. c3 {[%clk 0:02:53]} 3... dxc3 {[%clk 0:02:53.9]}
4. Nxc3 {[%clk 0:02:53.9]} 4... Nc6 {[%clk 0:02:54.1]} 5. Nf3 {[%clk 0:02:50.8]}
5... a6 {[%clk 0:02:54.1]} 6. Bf4 {[%clk 0:02:38.7]} 6... d6 {[%clk 0:02:44]} 7.
Rc1 {[%clk 0:02:35.5]} 7... Bg4 {[%clk 0:02:40.3]} 8. Bc4 {[%clk 0:02:33.2]}
8... e6 {[%clk 0:02:39.6]} 9. h3 {[%clk 0:02:31]} 9... Bh5 {[%clk 0:02:39]} 10.
g4 {[%clk 0:02:26.8]} 10... Bg6 {[%clk 0:02:38.5]} 11. O-O {[%clk 0:02:27.7]}
11... Nf6 {[%clk 0:02:37]} 12. Qe2 {[%clk 0:02:26.3]} 12... Be7 {[%clk 0:02:33]}
13. Rfd1 {[%clk 0:02:24]} 13... Qb8 {[%clk 0:02:24.4]} 14. a4 {[%clk 0:02:16.8]}
14... O-O {[%clk 0:02:20.7]} 15. e5 {[%clk 0:02:02.1]} 15... dxe5 {[%clk
0:02:20]} 16. Nxe5 {[%clk 0:02:03]} 16... Nxe5 {[%clk 0:02:19]} 17. Bxe5 {[%clk
0:02:03.9]} 17... Qa7 {[%clk 0:02:10.2]} 18. a5 {[%clk 0:01:38.6]} 18... Rac8
{[%clk 0:02:03.9]} 19. Na4 {[%clk 0:01:36.9]} 19... Rfd8 {[%clk 0:01:47.7]} 20.
Nb6 {[%clk 0:01:30.4]} 20... Rxd1+ {[%clk 0:01:46.9]} 21. Rxd1 {[%clk
0:01:29.5]} 21... Rd8 {[%clk 0:01:47]} 22. Bc7 {[%clk 0:01:14.2]} 22... Rxd1+
{[%clk 0:01:44]} 23. Qxd1 {[%clk 0:01:13.9]} 23... h6 {[%clk 0:01:41.4]} 24. Qd2
{[%clk 0:01:08.1]} 24... Bc5 {[%clk 0:01:37.5]} 25. b4 {[%clk 0:00:40]} 25...
Bxb6 {[%clk 0:01:36.4]} 26. Qd8+ {[%clk 0:00:39.2]} 26... Kh7 {[%clk 0:01:33.4]}
27. axb6 {[%clk 0:00:38]} 1-0

[Event "*** Titled Tuesday Blitz"]
[Site "Chess.com"]
[Date "2021.04.27"]
[Round "6"]
[White "thebulldog1"]
[Black "eltrain1971"]
[Result "1-0"]
[WhiteElo "2401"]
[BlackElo "2242"]
[TimeControl "180+1"]
[EndTime "11:04:23 PDT"]
[Termination "thebulldog1 won by resignation"]

1. e4 {[%clk 0:03:00.9]} 1... e6 {[%clk 0:02:59.8]} 2. d4 {[%clk 0:02:59]} 2...
d5 {[%clk 0:02:59.8]} 3. Nd2 {[%clk 0:02:59.7]} 3... c5 {[%clk 0:02:59.2]} 4.
Ngf3 {[%clk 0:02:56.7]} 4... cxd4 {[%clk 0:02:58.4]} 5. Nxd4 {[%clk 0:02:56.6]}
5... Nc6 {[%clk 0:02:58.7]} 6. Bb5 {[%clk 0:02:57.2]} 6... Bd7 {[%clk
0:02:58.5]} 7. Nxc6 {[%clk 0:02:53.8]} 7... bxc6 {[%clk 0:02:58.5]} 8. Bd3
{[%clk 0:02:54.1]} 8... Qc7 {[%clk 0:02:58.2]} 9. Qe2 {[%clk 0:02:46.9]} 9...
Bd6 {[%clk 0:02:58.2]} 10. Nf3 {[%clk 0:02:20.3]} 10... f6 {[%clk 0:02:51.8]}
11. exd5 {[%clk 0:02:11.9]} 11... cxd5 {[%clk 0:02:50.9]} 12. c4 {[%clk
0:02:06.4]} 12... Ne7 {[%clk 0:02:48.8]} 13. O-O {[%clk 0:01:59.4]} 13... O-O
{[%clk 0:02:48.6]} 14. Be3 {[%clk 0:01:51.9]} 14... Kh8 {[%clk 0:02:41.9]} 15.
Rac1 {[%clk 0:01:46.2]} 15... Qb7 {[%clk 0:02:40.2]} 16. c5 {[%clk 0:01:39]}
16... Bc7 {[%clk 0:02:29.5]} 17. Nd4 {[%clk 0:01:31.3]} 17... e5 {[%clk
0:02:28.1]} 18. c6 {[%clk 0:01:19.4]} 18... Nxc6 {[%clk 0:02:17.8]} 19. Nxc6
{[%clk 0:01:19.1]} 19... Bxc6 {[%clk 0:02:17.7]} 20. Qc2 {[%clk 0:01:17.2]}
20... Rac8 {[%clk 0:02:03.1]} 21. Qxc6 {[%clk 0:01:14.6]} 21... Qxc6 {[%clk
0:02:01.5]} 22. Rxc6 {[%clk 0:01:14.2]} 22... e4 {[%clk 0:02:01.8]} 23. Rfc1
{[%clk 0:01:12.2]} 23... Bxh2+ {[%clk 0:01:50.9]} 24. Kxh2 {[%clk 0:01:08.6]}
24... Rxc6 {[%clk 0:01:50.6]} 25. Rxc6 {[%clk 0:01:06.6]} 25... exd3 {[%clk
0:01:50.8]} 26. Rc3 {[%clk 0:01:06.7]} 26... Rb8 {[%clk 0:01:44.5]} 27. b3
{[%clk 0:01:02.6]} 27... d4 {[%clk 0:01:40.1]} 28. Bxd4 {[%clk 0:01:02]} 28...
d2 {[%clk 0:01:35.1]} 29. Rd3 {[%clk 0:01:02]} 1-0